{"text_format":"1","workbook":"xlsx","n_sheets":2,"sheets":["نموذج ادخال البيانات","تقرير الطالب"],"not_rendered":{"charts":0,"images":2,"macros":1,"external_links":0,"defined_names":2,"comments":0,"pivot_tables":0},"unopened":[],"bounds":{"document_bytes":16777216,"sheet_cells":100000,"rows_first":2000,"rows_last":500,"rows_between":2000,"halvings":0,"cell_chars":16384,"cell_head_chars":4096},"cells_cut":0,"cells_raw":0,"read":"whole","date_system":"1900"}

{"sheet":"نموذج ادخال البيانات","index":0,"n_rows":25,"n_cols":11,"rows_kept":25,"cut":false,"hidden":false,"merged":[[0,0,5,1],[2,2,3,3],[4,2,5,3],[4,4,4,5],[5,4,5,5],[4,7,4,8],[5,7,5,8],[5,9,5,10],[4,9,4,10],[2,4,3,10],[0,2,1,10]]}
[null,null,"نموذج ادخال بيانات التقرير الشهري للطالب"]
[]
[null,null,"حلقات الهدى والنور",null,"تاريخ التقرير"]
[]
[null,null,"جامع السيف",null,"اليوم",null,null,"الشهر",null,"السنة"]
[null,null,null,null,{"$f":"TEXT(TODAY(),\"B2dd\")","v":"30"},null,null,{"$f":"TEXT(TODAY(),\"b2mmm\")","v":"محرم"},null,{"$f":"TEXT(TODAY(),\"b2yyyy\")","v":"1443"}]
["م","اسم الطالب","اسم الحلقة","المستوى","المرحلة الدراسية","مقدار الحفظ بالصفحة2","مقدار المراجعة بالأجزاء","عدد أيام الغياب بعذر","عدد أيام الغياب بغير عذر","نتيجة الاختبار","التقييم الشهري"]
[{"$f":"ROW(A1)","v":1},"صالح عزت صعيدي","حلقة النموذجية","الأول","ابتدائي",12,3,3,3,98,"ممتاز"]
[{"$f":"ROW(A2)","v":2},"معاذ خالد مصطفى","حلقة النموذجية","السادس","متوسط",0,30,"لا يوجد",4,95,"ممتاز"]
[{"$f":"ROW(A3)","v":3},"عمار عمصت الله إنديجاني","حلقة النموذجية","الخامس","ثانوي",23,12,4,2,95,"ممتاز"]
[{"$f":"ROW(A4)","v":4},"ياسر بن محمد الصبحي","حلقة النموذجية","السادس","جامعي",0,30,4,"لا يوجد",94,"ممتاز"]
[{"$f":"ROW(A5)","v":5},"يزن حسن ثبيت","حلقة النموذجية","الأول","ثانوي",20,5,3,3,93,"ممتاز"]
[{"$f":"ROW(A6)","v":6},"مالك أنس الكيان","حلقة النموذجية","الثاني","ابتدائي",13,12,3,3,92,"ممتاز"]
[{"$f":"ROW(A7)","v":7},"أمير أنس الكيان","حلقة النموذجية","الأول","ابتدائي",5,3,3,3,91,"ممتاز"]
[{"$f":"ROW(A8)","v":8},"محمد نور الدين اسكيف","حلقة النموذجية","السادس","متوسط",0,20,2,3,90,"ممتاز"]
[{"$f":"ROW(A9)","v":9},"عاصم عصمت الله إنديجاني","حلقة النموذجية","الرابع","متوسط",14,11,2,4,90,"ممتاز"]
[{"$f":"ROW(A10)","v":10},"عزام أحمد بارحمة","حلقة النموذجية","السادس","جامعي",0,10,5,3,93,"جيد جداً"]
[{"$f":"ROW(A11)","v":11},"خالد جمال الحوشبي","حلقة النموذجية","الرابع","ثانوي",20,12,"لا يوجد",5,87,"جيد جداً"]
[{"$f":"ROW(A12)","v":12},"يحي محمد معلم","حلقة النموذجية","الأول","ابتدائي",8,4,3,3,87,"جيد جداً"]
[{"$f":"ROW(A13)","v":13},"فراس محمد المعلم","حلقة النموذجية","الرابع","ثانوي",23,10,2,5,84,"جيد جداً"]
[{"$f":"ROW(A14)","v":14},"صالح خالد بارويس","حلقة النموذجية","الأول","جامعي",20,4,2,"لا يوجد",0,"جيد جداً"]
[{"$f":"ROW(A15)","v":15},"إسماعيل محب الله","حلقة النموذجية","الثالث","ثانوي",10,7,5,5,87,"جيد"]
[{"$f":"ROW(A16)","v":16},"فارس أحمد منصور","حلقة النموذجية","الأول","ثانوي",0,0,2,5,86,"جيد"]
[{"$f":"ROW(A17)","v":17},"فادي محمد النعسان","حلقة النموذجية","الثالث","ابتدائي",7,11,3,5,75,"جيد"]
[{"$f":"ROW(A18)","v":18},"وليد مراد الأهدل","حلقة النموذجية","الأول","ابتدائي",7,3,"لا يوجد","لا يوجد",0,"جيد"]

{"sheet":"تقرير الطالب","index":1,"n_rows":26,"n_cols":13,"rows_kept":26,"cut":false,"hidden":false,"merged":[[0,0,10,4],[11,1,14,1],[16,1,21,1]]}
[]
[]
[]
[null,null,null,null,null,null,null,null,null,null,null,null,{"$f":"IFERROR(INDEX(الجدول1[اسم الطالب],MATCH(0,INDEX(COUNTIF($M$3:M3,الجدول1[اسم الطالب]),),0)),\"\")","v":"صالح عزت صعيدي"}]
[null,null,null,null,null,null,null,null,null,null,null,null,{"$f":"IFERROR(INDEX(الجدول1[اسم الطالب],MATCH(0,INDEX(COUNTIF($M$3:M4,الجدول1[اسم الطالب]),),0)),\"\")","v":"معاذ خالد مصطفى"}]
[null,null,null,null,null,null,null,null,null,null,null,null,{"$f":"IFERROR(INDEX(الجدول1[اسم الطالب],MATCH(0,INDEX(COUNTIF($M$3:M5,الجدول1[اسم الطالب]),),0)),\"\")","v":"عمار عمصت الله إنديجاني"}]
[null,null,null,null,null,null,null,null,null,null,null,null,{"$f":"IFERROR(INDEX(الجدول1[اسم الطالب],MATCH(0,INDEX(COUNTIF($M$3:M6,الجدول1[اسم الطالب]),),0)),\"\")","v":"ياسر بن محمد الصبحي"}]
[null,null,null,null,null,null,null,null,null,null,null,null,{"$f":"IFERROR(INDEX(الجدول1[اسم الطالب],MATCH(0,INDEX(COUNTIF($M$3:M7,الجدول1[اسم الطالب]),),0)),\"\")","v":"يزن حسن ثبيت"}]
[null,null,null,null,null,null,null,null,null,null,null,null,{"$f":"IFERROR(INDEX(الجدول1[اسم الطالب],MATCH(0,INDEX(COUNTIF($M$3:M8,الجدول1[اسم الطالب]),),0)),\"\")","v":"مالك أنس الكيان"}]
[null,null,null,null,null,null,null,null,null,null,null,null,{"$f":"IFERROR(INDEX(الجدول1[اسم الطالب],MATCH(0,INDEX(COUNTIF($M$3:M9,الجدول1[اسم الطالب]),),0)),\"\")","v":"أمير أنس الكيان"}]
[null,null,null,null,null,null,null,null,null,null,null,null,{"$f":"IFERROR(INDEX(الجدول1[اسم الطالب],MATCH(0,INDEX(COUNTIF($M$3:M10,الجدول1[اسم الطالب]),),0)),\"\")","v":"محمد نور الدين اسكيف"}]
[null,"المعلومات الشخصية","اسم الطالب","ياسر بن محمد الصبحي",null,null,null,null,null,null,null,null,{"$f":"IFERROR(INDEX(الجدول1[اسم الطالب],MATCH(0,INDEX(COUNTIF($M$3:M11,الجدول1[اسم الطالب]),),0)),\"\")","v":"عاصم عصمت الله إنديجاني"}]
[null,null,"اسم الحلقة",{"$f":"INDEX('نموذج ادخال البيانات'!$B$7:$J$25,MATCH(D$12,'نموذج ادخال البيانات'!$B$7:$B$25,0),MATCH($C13,'نموذج ادخال البيانات'!$B$7:$J$7,0))","v":"حلقة النموذجية"},null,null,null,null,null,null,null,null,{"$f":"IFERROR(INDEX(الجدول1[اسم الطالب],MATCH(0,INDEX(COUNTIF($M$3:M12,الجدول1[اسم الطالب]),),0)),\"\")","v":"عزام أحمد بارحمة"}]
[null,null,"المستوى",{"$f":"INDEX('نموذج ادخال البيانات'!$B$7:$J$25,MATCH(D$12,'نموذج ادخال البيانات'!$B$7:$B$25,0),MATCH($C14,'نموذج ادخال البيانات'!$B$7:$J$7,0))","v":"السادس"}]
[null,null,"المرحلة الدراسية",{"$f":"INDEX('نموذج ادخال البيانات'!$B$7:$J$25,MATCH(D$12,'نموذج ادخال البيانات'!$B$7:$B$25,0),MATCH($C15,'نموذج ادخال البيانات'!$B$7:$J$7,0))","v":"جامعي"}]
[null,null,null,null,null,null,null,null,null,null,null,null,{"$f":"IFERROR(INDEX(الجدول1[اسم الطالب],MATCH(0,INDEX(COUNTIF($M$3:M13,الجدول1[اسم الطالب]),),0)),\"\")","v":"خالد جمال الحوشبي"}]
[null,"أداء الطالب في الحلقة","مقدار الحفظ بالصفحة",{"$f":"INDEX('نموذج ادخال البيانات'!$B$7:$J$25,MATCH(D$12,'نموذج ادخال البيانات'!$B$7:$B$25,0),MATCH($C17,'نموذج ادخال البيانات'!$B$7:$J$7,0))","v":{"$error":"#N/A"}},null,null,null,null,null,null,null,null,{"$f":"IFERROR(INDEX(الجدول1[اسم الطالب],MATCH(0,INDEX(COUNTIF($M$3:M16,الجدول1[اسم الطالب]),),0)),\"\")","v":"يحي محمد معلم"}]
[null,null,"مقدار المراجعة بالأجزاء",{"$f":"INDEX('نموذج ادخال البيانات'!$B$7:$J$25,MATCH(D$12,'نموذج ادخال البيانات'!$B$7:$B$25,0),MATCH($C18,'نموذج ادخال البيانات'!$B$7:$J$7,0))","v":30},null,null,null,null,null,null,null,null,{"$f":"IFERROR(INDEX(الجدول1[اسم الطالب],MATCH(0,INDEX(COUNTIF($M$3:M17,الجدول1[اسم الطالب]),),0)),\"\")","v":"فراس محمد المعلم"}]
[null,null,"عدد أيام الغياب بعذر",{"$f":"INDEX('نموذج ادخال البيانات'!$B$7:$J$25,MATCH(D$12,'نموذج ادخال البيانات'!$B$7:$B$25,0),MATCH($C19,'نموذج ادخال البيانات'!$B$7:$J$7,0))","v":4},null,null,null,null,null,null,null,null,{"$f":"IFERROR(INDEX(الجدول1[اسم الطالب],MATCH(0,INDEX(COUNTIF($M$3:M18,الجدول1[اسم الطالب]),),0)),\"\")","v":"صالح خالد بارويس"}]
[null,null,"عدد أيام الغياب بغير عذر",{"$f":"INDEX('نموذج ادخال البيانات'!$B$7:$J$25,MATCH(D$12,'نموذج ادخال البيانات'!$B$7:$B$25,0),MATCH($C20,'نموذج ادخال البيانات'!$B$7:$J$7,0))","v":"لا يوجد"}]
[null,null,"نتيجة الاختبار",{"$f":"INDEX('نموذج ادخال البيانات'!$B$7:$J$25,MATCH(D$12,'نموذج ادخال البيانات'!$B$7:$B$25,0),MATCH($C21,'نموذج ادخال البيانات'!$B$7:$J$7,0))","v":94},null,null,null,null,null,null,null,null,{"$f":"IFERROR(INDEX(الجدول1[اسم الطالب],MATCH(0,INDEX(COUNTIF($M$3:M19,الجدول1[اسم الطالب]),),0)),\"\")","v":"إسماعيل محب الله"}]
[null,null,"التقييم الشهري",{"$f":"INDEX('نموذج ادخال البيانات'!$B$7:$J$25,MATCH(D$12,'نموذج ادخال البيانات'!$B$7:$B$25,0),MATCH($C22,'نموذج ادخال البيانات'!$B$7:$J$7,0))","v":{"$error":"#N/A"}},null,null,null,null,null,null,null,null,{"$f":"IFERROR(INDEX(الجدول1[اسم الطالب],MATCH(0,INDEX(COUNTIF($M$3:M21,الجدول1[اسم الطالب]),),0)),\"\")","v":"فارس أحمد منصور"}]
[null,null,null,null,null,null,null,null,null,null,null,{"$f":"IFERROR(INDEX(الجدول1[اسم الطالب],MATCH(0,INDEX(COUNTIF($M$3:M22,الجدول1[اسم الطالب]),),0)),\"\")","v":"فادي محمد النعسان"}]
[]
[]
[null,null,"تاريخ الطباعة",{"$f":"TODAY()","v":"2021-09-07"}]